[Event "Late-Titled-Tuesday-Blitz-September-12-2023"]
[Site "Chess.com"]
[Date "2023.09.12"]
[Round "11"]
[White "malakismayil"]
[Black "Garmendiarov"]
[Result "1-0"]
[WhiteElo "2517"]
[BlackElo "2366"]
[TimeControl "180+1"]
[EndTime "16:00:56 PDT"]
[Termination "malakismayil won by resignation"]

1. e4 {[%clk 0:03:00.9]} 1... c5 {[%clk 0:02:59.8]} 2. Nf3 {[%clk 0:03:00.4]}
2... d6 {[%clk 0:03:00.4]} 3. Bb5+ {[%clk 0:02:54.9]} 3... Nd7 {[%clk
0:03:00.2]} 4. Bxd7+ {[%clk 0:02:55.8]} 4... Bxd7 {[%clk 0:02:59.9]} 5. O-O
{[%clk 0:02:55.4]} 5... Nf6 {[%clk 0:02:59.9]} 6. Re1 {[%clk 0:02:55.1]} 6... g6
{[%clk 0:02:58.1]} 7. d4 {[%clk 0:02:54.6]} 7... cxd4 {[%clk 0:02:56.8]} 8. Nxd4
{[%clk 0:02:55.5]} 8... Bg7 {[%clk 0:02:57]} 9. Nc3 {[%clk 0:02:55.5]} 9... O-O
{[%clk 0:02:57]} 10. Bg5 {[%clk 0:02:52.2]} 10... h6 {[%clk 0:02:56.1]} 11. Bh4
{[%clk 0:02:48.5]} 11... Rc8 {[%clk 0:02:55.6]} 12. Qd2 {[%clk 0:02:45.4]} 12...
Qb6 {[%clk 0:02:33.4]} 13. Nb3 {[%clk 0:02:40.9]} 13... g5 {[%clk 0:02:25.6]}
14. Bg3 {[%clk 0:02:38.9]} 14... Bc6 {[%clk 0:02:13.5]} 15. Rad1 {[%clk
0:02:36.9]} 15... Rfd8 {[%clk 0:02:11.3]} 16. h4 {[%clk 0:02:36]} 16... Nh5
{[%clk 0:01:53.7]} 17. Bh2 {[%clk 0:02:29.5]} 17... g4 {[%clk 0:01:51.6]} 18.
Kh1 {[%clk 0:02:09]} 18... g3 {[%clk 0:01:23.6]} 19. Bxg3 {[%clk 0:02:07.6]}
19... Nxg3+ {[%clk 0:01:23.7]} 20. fxg3 {[%clk 0:02:08.5]} 20... Kh7 {[%clk
0:01:16.6]} 21. Rf1 {[%clk 0:02:04]} 21... Bf6 {[%clk 0:01:10]} 22. Nd5 {[%clk
0:01:54.7]} 22... Bxd5 {[%clk 0:01:09.7]} 23. exd5 {[%clk 0:01:55.6]} 23... Rg8
{[%clk 0:00:59.1]} 24. Qd3+ {[%clk 0:01:52.8]} 24... Kh8 {[%clk 0:00:58.3]} 25.
c3 {[%clk 0:01:50.1]} 25... Rg7 {[%clk 0:00:32.6]} 26. Rf3 {[%clk 0:01:41.7]}
26... Rcg8 {[%clk 0:00:32.8]} 27. Qd2 {[%clk 0:01:39.8]} 27... Kh7 {[%clk
0:00:22.1]} 28. Rdf1 {[%clk 0:01:27.2]} 28... Qb5 {[%clk 0:00:19.4]} 29. Rxf6
{[%clk 0:01:07]} 29... exf6 {[%clk 0:00:19.6]} 30. Rxf6 {[%clk 0:01:07.7]} 30...
Rg6 {[%clk 0:00:18.2]} 31. Rxf7+ {[%clk 0:01:05.9]} 31... R8g7 {[%clk
0:00:18.7]} 32. Rxg7+ {[%clk 0:01:02.9]} 32... Kxg7 {[%clk 0:00:18.1]} 33. Qd4+
{[%clk 0:00:58.8]} 33... Rf6 {[%clk 0:00:17.7]} 34. Nd2 {[%clk 0:00:51.9]} 34...
Qe2 {[%clk 0:00:15.3]} 35. Ne4 {[%clk 0:00:48.7]} 35... Qf1+ {[%clk 0:00:09.3]}
36. Kh2 {[%clk 0:00:48.5]} 36... Qf5 {[%clk 0:00:07.3]} 37. Qxf6+ {[%clk
0:00:41.4]} 37... Qxf6 {[%clk 0:00:07.6]} 38. Nxf6 {[%clk 0:00:42.3]} 38... Kxf6
{[%clk 0:00:08.5]} 39. c4 {[%clk 0:00:42.1]} 39... Ke5 {[%clk 0:00:08.9]} 40. g4
{[%clk 0:00:42.7]} 40... Kf4 {[%clk 0:00:08.2]} 41. g5 {[%clk 0:00:40.2]} 41...
hxg5 {[%clk 0:00:08.1]} 42. h5 {[%clk 0:00:40.8]} 42... Kf5 {[%clk 0:00:07.1]}
43. g4+ {[%clk 0:00:39.5]} 43... Kxg4 {[%clk 0:00:06.7]} 44. h6 {[%clk
0:00:39.1]} 44... Kf3 {[%clk 0:00:07.1]} 45. Kg1 {[%clk 0:00:37.7]} 45... Ke4
{[%clk 0:00:04.4]} 46. h7 {[%clk 0:00:38]} 46... Kd4 {[%clk 0:00:04.8]} 47.
h8=Q+ {[%clk 0:00:38.5]} 47... Kxc4 {[%clk 0:00:05.4]} 48. Qg8 {[%clk
0:00:39.2]} 48... Kd3 {[%clk 0:00:03.9]} 49. Qxg5 {[%clk 0:00:38.1]} 49... Kc2
{[%clk 0:00:04.5]} 50. Qf6 {[%clk 0:00:37.5]} 50... b5 {[%clk 0:00:03.8]} 51.
Qxd6 {[%clk 0:00:37.5]} 51... Kxb2 {[%clk 0:00:04.4]} 52. Qb4+ {[%clk
0:00:37.5]} 52... Kxa2 {[%clk 0:00:04.6]} 53. Qxb5 {[%clk 0:00:38.2]} 53... a5
{[%clk 0:00:05]} 54. Qxa5+ {[%clk 0:00:38.4]} 54... Kb3 {[%clk 0:00:05.6]} 55.
Qc5 {[%clk 0:00:38.7]} 55... Kb2 {[%clk 0:00:05]} 56. d6 {[%clk 0:00:39.1]} 1-0

[Event "Late-Titled-Tuesday-Blitz-September-12-2023"]
[Site "Chess.com"]
[Date "2023.09.12"]
[Round "11"]
[White "Jaka_Brilej"]
[Black "WilliamAlfaroCaracas"]
[Result "1-0"]
[WhiteElo "2455"]
[BlackElo "2291"]
[TimeControl "180+1"]
[EndTime "16:00:59 PDT"]
[Termination "Jaka_Brilej won on time"]

1. d4 {[%clk 0:03:00.9]} 1... Nf6 {[%clk 0:02:59.8]} 2. Bg5 {[%clk 0:03:00.7]}
2... g6 {[%clk 0:02:58.8]} 3. Bxf6 {[%clk 0:03:00.9]} 3... exf6 {[%clk
0:02:58.7]} 4. c4 {[%clk 0:03:01.5]} 4... Bg7 {[%clk 0:02:59.1]} 5. Nc3 {[%clk
0:02:59.3]} 5... O-O {[%clk 0:02:59.6]} 6. e3 {[%clk 0:02:59.6]} 6... f5 {[%clk
0:02:58.4]} 7. g3 {[%clk 0:02:59.7]} 7... d6 {[%clk 0:02:53.9]} 8. Nge2 {[%clk
0:02:58.9]} 8... Nd7 {[%clk 0:02:54]} 9. Bg2 {[%clk 0:02:59.1]} 9... Nf6 {[%clk
0:02:53.7]} 10. O-O {[%clk 0:02:59.4]} 10... c6 {[%clk 0:02:50.1]} 11. b4 {[%clk
0:02:59.3]} 11... d5 {[%clk 0:02:49.6]} 12. cxd5 {[%clk 0:02:50.9]} 12... cxd5
{[%clk 0:02:28.7]} 13. Qb3 {[%clk 0:02:49.4]} 13... Be6 {[%clk 0:02:28.2]} 14.
Nf4 {[%clk 0:02:49.2]} 14... Qd6 {[%clk 0:02:02.9]} 15. Ncxd5 {[%clk 0:02:41.4]}
15... Nxd5 {[%clk 0:01:57.2]} 16. Bxd5 {[%clk 0:02:40.2]} 16... Bxd5 {[%clk
0:01:45.5]} 17. Nxd5 {[%clk 0:02:40.3]} 17... Rfd8 {[%clk 0:01:29.7]} 18. Nf4
{[%clk 0:02:39.5]} 18... Rac8 {[%clk 0:01:30]} 19. Rac1 {[%clk 0:02:39]} 19...
Qa6 {[%clk 0:01:25.2]} 20. Qb2 {[%clk 0:02:28.1]} 20... g5 {[%clk 0:01:03.8]}
21. Ne2 {[%clk 0:02:20.7]} 21... Qd3 {[%clk 0:00:45.1]} 22. Rfd1 {[%clk
0:02:14.6]} 22... Rxc1 {[%clk 0:00:44]} 23. Rxc1 {[%clk 0:02:14.7]} 23... f4
{[%clk 0:00:34.9]} 24. gxf4 {[%clk 0:02:10.2]} 24... gxf4 {[%clk 0:00:27]} 25.
Nxf4 {[%clk 0:02:09.9]} 25... Qf5 {[%clk 0:00:23]} 26. Qc2 {[%clk 0:02:02.5]}
26... Qg4+ {[%clk 0:00:21.3]} 27. Ng2 {[%clk 0:02:02.5]} 27... h5 {[%clk
0:00:18.5]} 28. Qc7 {[%clk 0:01:57.7]} 28... Rd7 {[%clk 0:00:17.4]} 29. Qc8+
{[%clk 0:01:24.8]} 29... Kh7 {[%clk 0:00:17]} 30. Qc2+ {[%clk 0:01:02.2]} 30...
Kg8 {[%clk 0:00:13]} 31. Qd1 {[%clk 0:01:02]} 31... Qg6 {[%clk 0:00:12.6]} 32.
Rc8+ {[%clk 0:00:58.9]} 32... Kh7 {[%clk 0:00:12.2]} 33. Qc2 {[%clk 0:00:59]}
33... f5 {[%clk 0:00:09.5]} 34. Rc5 {[%clk 0:00:56.1]} 34... Rf7 {[%clk
0:00:07.6]} 35. Kh1 {[%clk 0:00:52.8]} 35... Qg4 {[%clk 0:00:05.8]} 36. Qd2
{[%clk 0:00:07.5]} 36... Bf8 {[%clk 0:00:05.9]} 37. Rc1 {[%clk 0:00:06.6]} 37...
Bd6 {[%clk 0:00:06.1]} 38. Ne1 {[%clk 0:00:05.3]} 38... Qh3 {[%clk 0:00:05.9]}
39. f4 {[%clk 0:00:05.7]} 39... Qf3+ {[%clk 0:00:05.8]} 40. Nxf3 {[%clk
0:00:04.4]} 1-0

[Event "Late-Titled-Tuesday-Blitz-September-12-2023"]
[Site "Chess.com"]
[Date "2023.09.12"]
[Round "11"]
[White "maksimys18"]
[Black "Abund"]
[Result "0-1"]
[WhiteElo "2492"]
[BlackElo "2732"]
[TimeControl "180+1"]
[EndTime "16:01:01 PDT"]
[Termination "Abund won by checkmate"]

1. d4 {[%clk 0:03:00.9]} 1... Nf6 {[%clk 0:02:59.9]} 2. Nf3 {[%clk 0:03:01.4]}
2... d5 {[%clk 0:02:59.9]} 3. c4 {[%clk 0:03:02.1]} 3... e6 {[%clk 0:03:00]} 4.
Nc3 {[%clk 0:03:02.6]} 4... c5 {[%clk 0:03:00.1]} 5. Bg5 {[%clk 0:03:02.7]} 5...
cxd4 {[%clk 0:02:59.3]} 6. Nxd4 {[%clk 0:03:03.6]} 6... e5 {[%clk 0:02:59.9]} 7.
Ndb5 {[%clk 0:03:04.1]} 7... a6 {[%clk 0:02:30.7]} 8. Qa4 {[%clk 0:03:03.3]}
8... Bd7 {[%clk 0:02:05.8]} 9. O-O-O {[%clk 0:02:58.6]} 9... Nc6 {[%clk
0:01:50.5]} 10. Bxf6 {[%clk 0:02:57.8]} 10... gxf6 {[%clk 0:01:45.5]} 11. Nxd5
{[%clk 0:02:57.5]} 11... axb5 {[%clk 0:01:43.5]} 12. Qxa8 {[%clk 0:02:55.9]}
12... Qxa8 {[%clk 0:01:33.1]} 13. Nc7+ {[%clk 0:02:56.2]} 13... Ke7 {[%clk
0:01:28]} 14. Nxa8 {[%clk 0:02:56.8]} 14... Bh6+ {[%clk 0:01:27.7]} 15. e3
{[%clk 0:02:54.5]} 15... Rxa8 {[%clk 0:01:27.3]} 16. cxb5 {[%clk 0:02:54.7]}
16... Nb4 {[%clk 0:01:18.8]} 17. a3 {[%clk 0:02:46.4]} 17... Rc8+ {[%clk
0:01:09.8]} 18. Kb1 {[%clk 0:02:37.2]} 18... Bf5+ {[%clk 0:01:07.5]} 19. Ka1
{[%clk 0:02:37.3]} 19... Nd5 {[%clk 0:00:45.9]} 20. Rxd5 {[%clk 0:02:24.4]}
20... Rc1+ {[%clk 0:00:45.7]} 21. Ka2 {[%clk 0:02:24.5]} 21... Be6 {[%clk
0:00:45.9]} 22. e4 {[%clk 0:02:24.7]} 22... f5 {[%clk 0:00:42.2]} 23. f3 {[%clk
0:02:24.5]} 23... fxe4 {[%clk 0:00:42.2]} 24. fxe4 {[%clk 0:02:24.8]} 24... f5
{[%clk 0:00:40.3]} 25. Bc4 {[%clk 0:02:18.2]} 25... Rxc4 {[%clk 0:00:39.6]} 26.
Rxe5 {[%clk 0:01:51.5]} 26... Rxe4+ {[%clk 0:00:36.9]} 27. Rxe6+ {[%clk
0:01:51.7]} 27... Kxe6 {[%clk 0:00:37.4]} 28. Kb3 {[%clk 0:01:48]} 28... Re3+
{[%clk 0:00:36.5]} 29. Kc4 {[%clk 0:01:47.7]} 29... Re2 {[%clk 0:00:36.6]} 30.
g3 {[%clk 0:01:41.4]} 30... Rxb2 {[%clk 0:00:35.2]} 31. a4 {[%clk 0:01:42]}
31... Bf8 {[%clk 0:00:32.6]} 32. Re1+ {[%clk 0:01:39]} 32... Kd7 {[%clk
0:00:28.4]} 33. Rd1+ {[%clk 0:01:34.7]} 33... Bd6 {[%clk 0:00:28.3]} 34. Kc3
{[%clk 0:01:20.4]} 34... Ra2 {[%clk 0:00:23.3]} 35. Rf1 {[%clk 0:01:15.5]} 35...
Ke6 {[%clk 0:00:21.8]} 36. Re1+ {[%clk 0:01:15.3]} 36... Kd5 {[%clk 0:00:20.3]}
37. Rd1+ {[%clk 0:01:14.6]} 37... Ke6 {[%clk 0:00:20.7]} 38. Re1+ {[%clk
0:01:14.8]} 38... Be5+ {[%clk 0:00:20.7]} 39. Kb3 {[%clk 0:01:14.4]} 39... Rxh2
{[%clk 0:00:19.3]} 40. a5 {[%clk 0:01:14.4]} 40... Rg2 {[%clk 0:00:19.2]} 41. a6
{[%clk 0:01:13.5]} 41... bxa6 {[%clk 0:00:20.1]} 42. bxa6 {[%clk 0:01:13.7]}
42... Rxg3+ {[%clk 0:00:17.5]} 43. Ka4 {[%clk 0:01:13.9]} 43... Rg7 {[%clk
0:00:14.4]} 44. Kb5 {[%clk 0:01:13]} 44... Kd5 {[%clk 0:00:14.5]} 45. Rd1+
{[%clk 0:01:06.2]} 45... Bd4 {[%clk 0:00:14.8]} 46. Rf1 {[%clk 0:01:06.9]} 46...
Ke4 {[%clk 0:00:14.7]} 47. Kc6 {[%clk 0:01:04.9]} 47... f4 {[%clk 0:00:14.7]}
48. Kb5 {[%clk 0:01:03.8]} 48... Be3 {[%clk 0:00:14.7]} 49. Kc4 {[%clk
0:01:02.3]} 49... f3 {[%clk 0:00:14.8]} 50. Rb1 {[%clk 0:01:01.8]} 50... f2
{[%clk 0:00:14.4]} 51. Kc3 {[%clk 0:01:01.7]} 51... Ra7 {[%clk 0:00:14]} 52.
Rb4+ {[%clk 0:00:57.9]} 52... Kf3 {[%clk 0:00:13.9]} 53. Rb7 {[%clk 0:00:58.3]}
53... Rxb7 {[%clk 0:00:11.3]} 54. axb7 {[%clk 0:00:58.5]} 54... Bf4 {[%clk
0:00:11.9]} 55. b8=Q {[%clk 0:00:54.1]} 55... Bxb8 {[%clk 0:00:12.8]} 56. Kd2
{[%clk 0:00:54.7]} 56... f1=Q {[%clk 0:00:12.9]} 57. Kc2 {[%clk 0:00:55.6]}
57... Qe2+ {[%clk 0:00:12.5]} 58. Kc3 {[%clk 0:00:55.3]} 58... Qe4 {[%clk
0:00:13.2]} 59. Kb3 {[%clk 0:00:55.7]} 59... h5 {[%clk 0:00:14.1]} 60. Ka3
{[%clk 0:00:56.6]} 60... h4 {[%clk 0:00:15]} 61. Kb2 {[%clk 0:00:57.5]} 61... h3
{[%clk 0:00:15.9]} 62. Kc3 {[%clk 0:00:57.9]} 62... h2 {[%clk 0:00:16.8]} 63.
Kd2 {[%clk 0:00:58.3]} 63... h1=Q {[%clk 0:00:16.8]} 64. Kc3 {[%clk 0:00:58.4]}
64... Qhe1+ {[%clk 0:00:17.2]} 65. Kb2 {[%clk 0:00:58.3]} 65... Q4b4+ {[%clk
0:00:17.3]} 66. Ka2 {[%clk 0:00:59.2]} 66... Qeb1# {[%clk 0:00:17.5]} 0-1

[Event "Late-Titled-Tuesday-Blitz-September-12-2023"]
[Site "Chess.com"]
[Date "2023.09.12"]
[Round "11"]
[White "ameetghasi100"]
[Black "only_strong_moves"]
[Result "1-0"]
[WhiteElo "2690"]
[BlackElo "2513"]
[TimeControl "180+1"]
[EndTime "16:01:05 PDT"]
[Termination "ameetghasi100 won by resignation"]

1. d4 {[%clk 0:03:00.9]} 1... Nf6 {[%clk 0:02:59.3]} 2. Bg5 {[%clk 0:03:00.3]}
2... e6 {[%clk 0:02:58.2]} 3. Nd2 {[%clk 0:02:59.8]} 3... d5 {[%clk 0:02:58.8]}
4. c3 {[%clk 0:02:59.6]} 4... c5 {[%clk 0:02:59.3]} 5. e3 {[%clk 0:02:59.3]}
5... Qb6 {[%clk 0:02:59.4]} 6. Qb3 {[%clk 0:02:58.8]} 6... Nfd7 {[%clk 0:02:54]}
7. Qc2 {[%clk 0:02:54.3]} 7... f6 {[%clk 0:02:52.2]} 8. Bh4 {[%clk 0:02:54.3]}
8... Nc6 {[%clk 0:02:49.5]} 9. Ngf3 {[%clk 0:02:54.6]} 9... Bd6 {[%clk
0:02:49.4]} 10. Bd3 {[%clk 0:02:51.1]} 10... Nf8 {[%clk 0:02:47.8]} 11. O-O
{[%clk 0:02:49.4]} 11... Bd7 {[%clk 0:02:42.8]} 12. Rfe1 {[%clk 0:02:38.2]}
12... Rc8 {[%clk 0:02:43]} 13. Qb1 {[%clk 0:02:38.1]} 13... cxd4 {[%clk
0:02:32.2]} 14. exd4 {[%clk 0:02:37.1]} 14... Ne7 {[%clk 0:02:25.7]} 15. Nf1
{[%clk 0:02:24.3]} 15... Bb5 {[%clk 0:02:15.7]} 16. Bc2 {[%clk 0:02:17.6]} 16...
Bxf1 {[%clk 0:02:12.1]} 17. Kxf1 {[%clk 0:02:15.4]} 17... g5 {[%clk 0:02:11.8]}
18. Bg3 {[%clk 0:02:15.4]} 18... Bxg3 {[%clk 0:02:11.9]} 19. hxg3 {[%clk
0:02:16.3]} 19... Kf7 {[%clk 0:02:11.2]} 20. Re2 {[%clk 0:02:12]} 20... h5
{[%clk 0:02:11.1]} 21. Kg1 {[%clk 0:01:20.5]} 21... Qd6 {[%clk 0:01:59.7]} 22.
Qf1 {[%clk 0:01:02.9]} 22... h4 {[%clk 0:01:59.2]} 23. gxh4 {[%clk 0:01:01.8]}
23... g4 {[%clk 0:01:59.7]} 24. Nh2 {[%clk 0:01:02.3]} 24... g3 {[%clk
0:01:37.9]} 25. fxg3 {[%clk 0:01:02.2]} 25... Qxg3 {[%clk 0:01:38.8]} 26. Nf3
{[%clk 0:01:02.9]} 26... Ke8 {[%clk 0:01:26.9]} 27. Rae1 {[%clk 0:01:01.7]}
27... Kd7 {[%clk 0:01:21.9]} 28. Re3 {[%clk 0:00:56.9]} 28... Qg7 {[%clk
0:01:14.3]} 29. Qb5+ {[%clk 0:00:54.2]} 29... Kc7 {[%clk 0:01:12.3]} 30. Qe2
{[%clk 0:00:21.3]} 30... Kb8 {[%clk 0:01:08.8]} 31. Qf2 {[%clk 0:00:21.8]} 31...
Ka8 {[%clk 0:01:07.7]} 32. a4 {[%clk 0:00:21.4]} 32... f5 {[%clk 0:00:58.6]} 33.
Ng5 {[%clk 0:00:20.3]} 33... Neg6 {[%clk 0:00:55.2]} 34. Rh3 {[%clk 0:00:15.8]}
34... Qf6 {[%clk 0:00:43.3]} 35. a5 {[%clk 0:00:13.6]} 35... Rc6 {[%clk
0:00:34.3]} 36. Ba4 {[%clk 0:00:12.4]} 36... Rc8 {[%clk 0:00:33.5]} 37. a6
{[%clk 0:00:12.2]} 37... e5 {[%clk 0:00:14.5]} 38. axb7+ {[%clk 0:00:11.6]}
38... Kxb7 {[%clk 0:00:15]} 39. dxe5 {[%clk 0:00:12.1]} 39... Nxe5 {[%clk
0:00:15.8]} 40. Qd4 {[%clk 0:00:11.2]} 40... Nfg6 {[%clk 0:00:13.3]} 41. Qb4+
{[%clk 0:00:10.5]} 41... Qb6+ {[%clk 0:00:13.3]} 42. Qxb6+ {[%clk 0:00:10.4]}
42... axb6 {[%clk 0:00:14.2]} 43. Bc2 {[%clk 0:00:08.5]} 43... Nc4 {[%clk
0:00:13.3]} 44. Bxf5 {[%clk 0:00:07.5]} 44... Rcg8 {[%clk 0:00:08.5]} 45. Be6
{[%clk 0:00:07.8]} 45... Rg7 {[%clk 0:00:08.5]} 46. Bxd5+ {[%clk 0:00:07.9]} 1-0

[Event "Late-Titled-Tuesday-Blitz-September-12-2023"]
[Site "Chess.com"]
[Date "2023.09.12"]
[Round "11"]
[White "arminmusovic"]
[Black "MathiasCasalaspro"]
[Result "0-1"]
[WhiteElo "2506"]
[BlackElo "2345"]
[TimeControl "180+1"]
[EndTime "16:01:05 PDT"]
[Termination "MathiasCasalaspro won by resignation"]

1. a3 {[%clk 0:03:00.9]} 1... d5 {[%clk 0:02:57.8]} 2. Nc3 {[%clk 0:03:00.9]}
2... e5 {[%clk 0:02:56.5]} 3. d4 {[%clk 0:03:01.1]} 3... e4 {[%clk 0:02:56.1]}
4. Bf4 {[%clk 0:03:00.9]} 4... c6 {[%clk 0:02:54.9]} 5. f3 {[%clk 0:03:01]} 5...
f5 {[%clk 0:02:49.5]} 6. Qd2 {[%clk 0:03:01.5]} 6... Nf6 {[%clk 0:02:47.7]} 7.
O-O-O {[%clk 0:03:01.1]} 7... Bd6 {[%clk 0:02:47.5]} 8. Nh3 {[%clk 0:03:01.1]}
8... O-O {[%clk 0:02:40.7]} 9. e3 {[%clk 0:02:58.4]} 9... b5 {[%clk 0:02:38.4]}
10. Be2 {[%clk 0:02:56.6]} 10... a5 {[%clk 0:02:35.5]} 11. Rdf1 {[%clk
0:02:52.7]} 11... b4 {[%clk 0:02:33.3]} 12. Nb1 {[%clk 0:02:53.1]} 12... bxa3
{[%clk 0:02:32.1]} 13. Nxa3 {[%clk 0:02:51.1]} 13... Ba6 {[%clk 0:02:17.9]} 14.
Be5 {[%clk 0:02:39.8]} 14... Bxe2 {[%clk 0:02:15]} 15. Qxe2 {[%clk 0:02:40.7]}
15... Bxa3 {[%clk 0:02:06.8]} 16. bxa3 {[%clk 0:02:41.2]} 16... Qe7 {[%clk
0:02:07.7]} 17. Kb2 {[%clk 0:02:37.4]} 17... Nbd7 {[%clk 0:02:08.1]} 18. f4
{[%clk 0:02:28.6]} 18... Nb6 {[%clk 0:02:07]} 19. Ra1 {[%clk 0:02:24.6]} 19...
Nc4+ {[%clk 0:02:06.4]} 20. Kc1 {[%clk 0:02:25.2]} 20... Nxa3 {[%clk 0:02:03.8]}
21. Rg1 {[%clk 0:02:22.8]} 21... Nc4 {[%clk 0:02:02.5]} 22. Nf2 {[%clk
0:02:22.1]} 22... Qb4 {[%clk 0:01:52.9]} 23. Kd1 {[%clk 0:02:10.7]} 23... Qc3
{[%clk 0:01:46.3]} 24. Rb1 {[%clk 0:02:03.7]} 24... Nxe3+ {[%clk 0:01:45.9]} 25.
Qxe3 {[%clk 0:02:03.9]} 25... Qxe3 {[%clk 0:01:45.8]} 26. Rf1 {[%clk 0:02:04.6]}
26... Ng4 {[%clk 0:01:43.9]} 27. Nxg4 {[%clk 0:02:04.6]} 27... fxg4 {[%clk
0:01:44.8]} 28. Rb3 {[%clk 0:02:04.7]} 28... Qxb3 {[%clk 0:01:38.5]} 29. cxb3
{[%clk 0:02:05.6]} 29... a4 {[%clk 0:01:39.4]} 30. Kc2 {[%clk 0:02:02]} 30...
axb3+ {[%clk 0:01:33.6]} 31. Kxb3 {[%clk 0:02:02.9]} 31... Rf7 {[%clk
0:01:34.1]} 32. Kb4 {[%clk 0:02:03]} 32... Ra2 {[%clk 0:01:20]} 33. Kc5 {[%clk
0:01:55.6]} 33... Rxg2 {[%clk 0:01:16.1]} 34. Kxc6 {[%clk 0:01:54.5]} 34... Rxh2
{[%clk 0:01:16.5]} 35. Kxd5 {[%clk 0:01:50.8]} 35... e3 {[%clk 0:01:16.9]} 36.
Ke4 {[%clk 0:01:39.4]} 36... e2 {[%clk 0:01:16.9]} 37. Re1 {[%clk 0:01:40]}
37... Ra7 {[%clk 0:01:11.6]} 38. d5 {[%clk 0:01:38.1]} 38... g3 {[%clk 0:01:04]}
39. f5 {[%clk 0:01:35.6]} 39... Re7 {[%clk 0:01:00.5]} 40. d6 {[%clk 0:01:33.5]}
40... Re8 {[%clk 0:00:37.5]} 41. Kd5 {[%clk 0:01:20.8]} 41... Rh5 {[%clk
0:00:32.6]} 42. d7 {[%clk 0:01:16.2]} 42... Rd8 {[%clk 0:00:30.7]} 43. Ke6
{[%clk 0:01:08.8]} 43... g2 {[%clk 0:00:18.7]} 44. Ke7 {[%clk 0:01:08.1]} 44...
Ra8 {[%clk 0:00:18.2]} 45. Ra1 {[%clk 0:00:59.8]} 45... Rf8 {[%clk 0:00:14.9]}
46. Bd4 {[%clk 0:00:49.2]} 46... Rhxf5 {[%clk 0:00:09.9]} 47. Rg1 {[%clk
0:00:40.1]} 47... Rf1 {[%clk 0:00:09.6]} 48. Kd6 {[%clk 0:00:19.9]} 48... Rxg1
{[%clk 0:00:08.9]} 49. Bf6 {[%clk 0:00:16.4]} 49... Rxf6+ {[%clk 0:00:08]} 50.
Kc5 {[%clk 0:00:16]} 50... Rf8 {[%clk 0:00:07.5]} 51. d8=Q {[%clk 0:00:16.4]}
51... Rxd8 {[%clk 0:00:07.6]} 0-1

[Event "Late-Titled-Tuesday-Blitz-September-12-2023"]
[Site "Chess.com"]
[Date "2023.09.12"]
[Round "11"]
[White "emeli_chess"]
[Black "laskakid"]
[Result "1-0"]
[WhiteElo "2383"]
[BlackElo "2256"]
[TimeControl "180+1"]
[EndTime "16:01:10 PDT"]
[Termination "emeli_chess won by resignation"]

1. d4 {[%clk 0:03:00.9]} 1... d5 {[%clk 0:02:59.2]} 2. c4 {[%clk 0:03:00.7]}
2... c6 {[%clk 0:02:58.9]} 3. Nc3 {[%clk 0:03:00.9]} 3... Nf6 {[%clk 0:02:58.1]}
4. e3 {[%clk 0:03:01.1]} 4... Bf5 {[%clk 0:02:55]} 5. Nf3 {[%clk 0:03:01.1]}
5... e6 {[%clk 0:02:50.6]} 6. Nh4 {[%clk 0:03:01.3]} 6... Be4 {[%clk 0:02:50.3]}
7. f3 {[%clk 0:03:01]} 7... Bg6 {[%clk 0:02:50.1]} 8. Bd2 {[%clk 0:03:01.1]}
8... Be7 {[%clk 0:02:34.2]} 9. Nxg6 {[%clk 0:02:59.9]} 9... hxg6 {[%clk
0:02:33.8]} 10. Qb3 {[%clk 0:03:00]} 10... Qc7 {[%clk 0:02:28.4]} 11. g3 {[%clk
0:02:57.1]} 11... dxc4 {[%clk 0:02:09.4]} 12. Qxc4 {[%clk 0:02:55.5]} 12... e5
{[%clk 0:02:00]} 13. d5 {[%clk 0:02:17.5]} 13... O-O {[%clk 0:01:36.5]} 14. e4
{[%clk 0:02:06.1]} 14... Qd7 {[%clk 0:01:21.6]} 15. Be3 {[%clk 0:01:59.8]} 15...
Rc8 {[%clk 0:01:16.8]} 16. Rd1 {[%clk 0:01:37.9]} 16... cxd5 {[%clk 0:01:09.6]}
17. Nxd5 {[%clk 0:01:37.7]} 17... Nxd5 {[%clk 0:00:45.7]} 18. Rxd5 {[%clk
0:01:17]} 18... Qe6 {[%clk 0:00:35]} 19. Qb3 {[%clk 0:01:09.7]} 19... Nc6 {[%clk
0:00:34.2]} 20. Bc4 {[%clk 0:01:01.5]} 20... Qf6 {[%clk 0:00:32.4]} 21. O-O
{[%clk 0:00:59.2]} 21... Nb4 {[%clk 0:00:30]} 22. Rd7 {[%clk 0:00:50.5]} 22...
b6 {[%clk 0:00:24.1]} 23. Bd5 {[%clk 0:00:44.5]} 23... Nxd5 {[%clk 0:00:23.5]}
24. Qxd5 {[%clk 0:00:44.5]} 24... Rab8 {[%clk 0:00:21.1]} 25. Rxa7 {[%clk
0:00:43.2]} 25... Rc2 {[%clk 0:00:20.6]} 26. Rf2 {[%clk 0:00:36.6]} 26... Rbc8
{[%clk 0:00:17.6]} 27. Ra8 {[%clk 0:00:35.8]} 27... Kh7 {[%clk 0:00:14.6]} 28.
Rxc8 {[%clk 0:00:34.7]} 28... Rxc8 {[%clk 0:00:14]} 29. Kg2 {[%clk 0:00:35]}
29... Bc5 {[%clk 0:00:12.6]} 30. Bxc5 {[%clk 0:00:29.6]} 30... Rxc5 {[%clk
0:00:12.9]} 31. Qd3 {[%clk 0:00:29.4]} 31... Qc6 {[%clk 0:00:12.5]} 32. b3
{[%clk 0:00:28.4]} 32... Rc1 {[%clk 0:00:12.5]} 33. a4 {[%clk 0:00:27.1]} 33...
Ra1 {[%clk 0:00:12.5]} 34. Rc2 {[%clk 0:00:26.7]} 34... Qe6 {[%clk 0:00:11.8]}
35. Qc3 {[%clk 0:00:26.5]} 35... Qd6 {[%clk 0:00:11.3]} 36. Qxa1 {[%clk
0:00:26.4]} 36... Qd3 {[%clk 0:00:10.7]} 37. Qc3 {[%clk 0:00:26.5]} 37... Qd1
{[%clk 0:00:10.4]} 38. Rd2 {[%clk 0:00:25.7]} 38... Qe1 {[%clk 0:00:10.3]} 39.
Qd3 {[%clk 0:00:25.6]} 39... g5 {[%clk 0:00:09.8]} 40. b4 {[%clk 0:00:25.2]}
40... g4 {[%clk 0:00:10]} 41. fxg4 {[%clk 0:00:25.5]} 41... Qa1 {[%clk
0:00:09.5]} 42. Qc2 {[%clk 0:00:23.9]} 42... Qa3 {[%clk 0:00:09]} 43. Rf2 {[%clk
0:00:22.2]} 43... Qxb4 {[%clk 0:00:08.3]} 44. Qb2 {[%clk 0:00:20.2]} 44... Qxe4+
{[%clk 0:00:07.6]} 45. Kg1 {[%clk 0:00:20.1]} 45... Qe1+ {[%clk 0:00:07.5]} 46.
Rf1 {[%clk 0:00:19.3]} 46... Qe3+ {[%clk 0:00:07.8]} 47. Qf2 {[%clk 0:00:19.5]}
47... Qe4 {[%clk 0:00:07.7]} 48. Qf5+ {[%clk 0:00:19.3]} 48... Qxf5 {[%clk
0:00:07.3]} 49. Rxf5 {[%clk 0:00:19.4]} 49... f6 {[%clk 0:00:06.6]} 50. Rf2
{[%clk 0:00:19.4]} 50... Kg6 {[%clk 0:00:07]} 51. Rb2 {[%clk 0:00:19.5]} 1-0